Cogmind - Beta 13 @@@ ROGUE MODE // 2024.04.11 @ 00:03:59 Player: Stavbearer Result: Destroyed by Y-54 Guardian with Gatling Laser Performance ------------- Evolutions (1) 500 Regions Visited (5) 1000 Robots Destroyed (14) 70 Value Destroyed (225) 225 Prototype IDs (5) 100 Alien Tech Used (0) 0 Bonus (0) 0 TOTAL SCORE: 1895 Bonus ------- None Cogmind --------- Core Integrity 0/400 Matter 300/300 Energy 100/100 System Corruption 0% Temperature Cool (6) Movement Core (50) Location -6/Proximity Caves Parts ------- > --- POWER (1) -------- (None) > --- PROPULSION (2) --- (None) > --- UTILITY (4) ------ (None) > --- WEAPON (2) ------- (None) > --- INVENTORY (5) ---- Light Armor Plating Mobile Refinery Mk. CCLXVII Bomb Factory No. 2 Peak State ------------ > --- POWER ------------ Ion Engine > --- PROPULSION ------- (None) > --- UTILITY ---------- Particle Charger Transmission Jammer Bomb Factory No. 2 > --- WEAPON ----------- Precision Beam Rifle Precision Beam Rifle > --- INVENTORY -------- Light Ion Engine Light Armor Plating Precision Beam Rifle [Rating: 28] Favorites ----------- Power Ion Engine Engine Ion Engine Propulsion Wheel Leg Aluminum Leg Wheel Wheel Hover Unit Hover Unit Flight Unit Flight Unit Utility Seismic Detector Device Seismic Detector Processor Signal Interpreter Protection Light Armor Plating Weapon Precision Beam Rifle Energy Gun Precision Beam Rifle Ballistic Gun Assault Rifle Piercing Weapon CR-A16's Pointy Stick Build | -11 -10 -9 -9 -7 -6 ------- Run | Yrd Mat Mat Min Zio Pro Slots Evolved 2 | . . 2 . . . Power . | . . . . . . Propulsion . | . . . . . . Utility 2 | . . 2 . . . Weapon . | . . . . . . Parts Attached 34 | 8 6 11 . 9 . Power 2 | 2 . . . . . Engine 2 | 2 . . . . . Core . | . . . . . . Reactor . | . . . . . . Propulsion 8 | 2 4 2 . . . Treads . | . . . . . . Leg 3 | 2 1 . . . . Wheel 1 | . 1 . . . . Hover 2 | . 2 . . . . Flight 2 | . . 2 . . . Utility 18 | 2 2 6 . 8 . Device 14 | 2 1 3 . 8 . Storage . | . . . . . . Processor 1 | . . 1 . . . Hackware . | . . . . . . Protection 3 | . 1 2 . . . Artifact . | . . . . . . Weapon 6 | 2 . 3 . 1 . Energy Gun 3 | . . 3 . . . Energy Cannon . | . . . . . . Ballistic Gun 2 | 2 . . . . . Ballistic Cannon . | . . . . . . Launcher . | . . . . . . Special Weapon . | . . . . . . Impact Weapon . | . . . . . . Slashing Weapon . | . . . . . . Piercing Weapon 1 | . . . . 1 . Special Melee Weapon . | . . . . . . Unidentified Prototypes 3 | . . 1 . 2 . Parts Lost 12 | . 1 . 5 . 6 Power 1 | . . . . . 1 Propulsion 3 | . 1 . 2 . . Utility 7 | . . . 3 . 4 Weapon 1 | . . . . . 1 Highest Loss Streak 6 | . 1 . 5 . 6 To Critical Strikes 1 | . . . . . 1 Average Slot Usage (%) 67 | . 95 88 88 61 56 Engine 11 | . 14 11 11 11 8 Wheel 1 | . 4 10 . . . Device 32 | . 25 24 25 34 37 Protection 3 | . 2 19 . . . Energy Gun 11 | . . 20 22 10 . Ballistic Gun 1 | . 28 1 . . . Piercing Weapon 4 | . . . . 6 11 Naked Turns . | . . . . . . Heaviest Build 42 | 11 13 18 11 42 19 Greatest Support 20 | 20 20 13 13 3 3 Greatest Overweight (x) 13 | . 2 4 3 13 6 Average Overweight (x) 3 | . . . . 4 5 Largest Inventory Capacity 5 | 5 5 5 5 5 5 Average Capacity 5 | 5 5 5 5 5 5 Most Carried 5 | 4 5 5 5 5 4 Average Carried 4 | 2 4 4 5 4 4 Final Capacity 5 | 5 5 5 5 5 5 Final Carried 5 | 4 5 5 5 4 4 Class Distribution -------------------- 81% | Mutant 15% | Infiltrator-Mutant Dominant Class ---------------- Mutant | -10/Materials Mutant | -9/Materials Scavenger-Mutant | -9/Mines Mutant | -7/Zion Infiltrator-Mutant | -6/Proximity Caves Resources | -11 -10 -9 -9 -7 -6 ----------- Run | Yrd Mat Mat Min Zio Pro Matter Collected 622 | 316 61 175 . 70 . Remotely . | . . . . . . Salvage Created 571 | 127 61 383 . . . Parts 36 | 8 6 22 . . . Haulers Intercepted . | . . . . . . Recyclers Shooed 2 | 1 . 1 . . . Parts Field Recycled . | . . . . . . Retrieved Matter . | . . . . . . Parts Self-Destructed . | . . . . . . Prevented . | . . . . . . Kills | -11 -10 -9 -9 -7 -6 ------- Run | Yrd Mat Mat Min Zio Pro Combat Hostiles Destroyed 5 | . 1 4 . . . Guns 4 | . 1 3 . . . AOE 1 | . . 1 . . . Classes Destroyed 6 | 2 2 2 . . . Tunneler 2 | 2 . . . . . Recycler 4 | 1 . 3 . . . Watcher 3 | . 1 2 . . . Swarmer 3 | . . 3 . . . Grunt 1 | . 1 . . . . Sentry 1 | . . 1 . . . Best Kill Streak 7 | 3 1 7 . . . Combat Bots Only 3 | . 1 3 . . . Max Kills in Single Turn 2 | 1 1 2 . . . Gunslinging 1 | . . 1 . . . Exploded 1 | . . 1 . . . Melee . | . . . . . . Uniques/NPCs Destroyed . | . . . . . . Combat | -11 -10 -9 -9 -7 -6 -------- Run | Yrd Mat Mat Min Zio Pro Hostile Shots Fired 111 | . 11 10 11 . 79 Missed 40 | . 5 3 2 . 30 Damage Taken 935 | . 67 119 211 . 538 Core 406 | . . 29 17 . 360 Absorbed by Shields . | . . . . . . Core Remaining (%) 100 | 100 100 . . . . Volleys Fired 32 | 6 11 13 2 . . Largest 2 | 2 2 2 2 . . Hottest 122 | 40 40 122 122 . . Shots Fired 64 | 12 22 26 4 . . Gun 64 | 12 22 26 4 . . Cannon . | . . . . . . Launcher . | . . . . . . Special . | . . . . . . Kinetic 39 | 12 22 5 . . . Thermal 20 | . . 16 4 . . Explosive . | . . . . . . Electromagnetic 5 | . . 5 . . . Robot Hit Streak 8 | 6 4 8 2 . . Robot Miss Streak 3 | 1 2 3 1 . . Penetration Max . | . . . . . . Secondary Targets 1 | . . 1 . . . Max Gunslinging Chain 1 | . . 1 . . . Shots Hit Robots 38 | 8 12 16 2 . . Core Hits 19 | 4 3 10 2 . . Critical Kills . | . . . . . . Critical Parts Destroyed . | . . . . . . Critical Strikes . | . . . . . . Melee Attacks 6 | . . . . 2 4 Impact . | . . . . . . Slashing . | . . . . . . Piercing 6 | . . . . 2 4 Sneak Attacks . | . . . . . . Combat Hostiles . | . . . . . . Follow-up Attacks . | . . . . . . Damage Inflicted 625 | 102 152 323 48 . . Guns 558 | 102 152 269 35 . . Cannons . | . . . . . . Explosions 54 | . . 54 . . . Melee . | . . . . . . Ramming 13 | . . . 13 . . Kinetic 282 | 102 152 28 . . . Thermal 260 | . . 225 35 . . Explosive . | . . . . . . Electromagnetic 70 | . . 70 . . . Impact . | . . . . . . Slashing . | . . . . . . Piercing . | . . . . . . Highest Corruption 13 | . . . 13 13 . Average Corruption 12 | . . . 7 13 . Corruption Purged . | . . . . . . Corruption Blocked . | . . . . . . Effects 4 | . . . . 4 . Message Errors 1 | . . . . 1 . Heat Flow Errors 1 | . . . . 1 . Data Loss (minor) 2 | . . . . 2 . Overload Shots . | . . . . . . Overflow Damage . | . . . . . . Projectiles . | . . . . . . Explosions . | . . . . . . Melee . | . . . . . . Knockbacks . | . . . . . . Impact . | . . . . . . Kinetic . | . . . . . . Secondary . | . . . . . . Self-Inflicted Damage 49 | . . 43 6 . . Shots 1 | . . 1 . . . Rammed 2 | . . . 2 . . Targets Rammed 2 | . . . 2 . . Kicked . | . . . . . . Crushed . | . . . . . . Highest Temperature 207 | . 1 207 127 159 . Average Temperature 60 | . 1 60 70 90 . Received Heat Transfer 152 | . 36 36 20 . 60 Siege Activations . | . . . . . . Robots Corrupted . | . . . . . . Combat Hostiles . | . . . . . . Parts Fried . | . . . . . . Impact Corruptions . | . . . . . . Robots Melted . | . . . . . . Combat Hostiles . | . . . . . . Parts Melted 1 | . . 1 . . . Heat Transferred 444 | . . 370 74 . . Parts Sabotaged . | . . . . . . Parts Stolen . | . . . . . . Parts Stripped . | . . . . . . Power Chain Reactions 1 | . . 1 . . . Alert | -11 -10 -9 -9 -7 -6 ------- Run | Yrd Mat Mat Min Zio Pro Peak Influence 158 | 15 51 158 76 . . Initial 61 | . 9 . 61 . . Average 43 | 4 24 53 58 . . Maximum Alert Level . | . . . . . . Low Security (%) 100 | 100 100 100 100 . . Level 1 . | . . . . . . Level 2 . | . . . . . . Level 3 . | . . . . . . Level 4 . | . . . . . . Level 5 . | . . . . . . High Security . | . . . . . . Max Security . | . . . . . . Squads Dispatched 3 | . 2 1 . . . Investigation 2 | . 1 1 . . . Extermination . | . . . . . . Reinforcement 1 | . 1 . . . . Assault . | . . . . . . Garrison . | . . . . . . Intercept . | . . . . . . Searches Triggered . | . . . . . . Construction Impeded . | . . . . . . Haulers Reinforced . | . . . . . . Active Scanning Responses . | . . . . . . Cargo Convoy Interrupts . | . . . . . . Stealth | -11 -10 -9 -9 -7 -6 --------- Run | Yrd Mat Mat Min Zio Pro Distress Signals 1 | . . 1 . . . Communications Jammed . | . . . . . . Distress Signals . | . . . . . . Times Spotted 26 | . 6 6 11 . 3 Peak Tracking Total 9 | . 2 3 9 . 3 Tactical Retreats 2 | . . 2 . . . Traps | -11 -10 -9 -9 -7 -6 ------- Run | Yrd Mat Mat Min Zio Pro Traps Triggered 1 | . . 1 . . . Indirectly . | . . . . . . Trap Hack Attempts . | . . . . . . Triggered . | . . . . . . Disarmed . | . . . . . . Reprogrammed . | . . . . . . Reused . | . . . . . . Traps Extracted . | . . . . . . Installed . | . . . . . . Triggered . | . . . . . . Machines | -11 -10 -9 -9 -7 -6 ---------- Run | Yrd Mat Mat Min Zio Pro Machines Disabled 3 | . . 3 . . . Max in Single Turn 2 | . . 2 . . . Machines Repaired . | . . . . . . Machines Dismantled . | . . . . . . Machines Sabotaged . | . . . . . . Overloaded Fab Kills . | . . . . . . Hacking | -11 -10 -9 -9 -7 -6 --------- Run | Yrd Mat Mat Min Zio Pro Machines Accessed 6 | . 3 3 . . . Terminals 5 | . 2 3 . . . Fabricators . | . . . . . . Repair Stations . | . . . . . . Recycling Units 1 | . 1 . . . . Scanalyzers . | . . . . . . Garrison Access . | . . . . . . Total Hacks 14 | . 7 7 . . . Successful 8 | . 5 3 . . . Failed 6 | . 2 4 . . . Catastrophic 1 | . . 1 . . . Database Lockouts . | . . . . . . Manual 9 | . 1 . . 8 . Terminals 11 | . 4 7 . . . Fabricators . | . . . . . . Repair Stations . | . . . . . . Recycling Units 3 | . 3 . . . . Scanalyzers . | . . . . . . Garrison Access . | . . . . . . Terminal Hacks 5 | . 2 3 . . . Prototype ID Bank 1 | . 1 . . . . Emergency Access Points 1 | . . 1 . . . Unreport Threat 1 | . 1 . . . . Recall Investigation 1 | . . 1 . . . Zone Layout 1 | . . 1 . . . Fabricator Hacks . | . . . . . . Repair Station Hacks . | . . . . . . Recycling Unit Hacks 3 | . 3 . . . . Report Inventory 1 | . 1 . . . . Retrieve Matter 2 | . 2 . . . . Scanalyzer . | . . . . . . Garrison Access Hacks . | . . . . . . Unauthorized Hacks . | . . . . . . Terminals . | . . . . . . Fabricators . | . . . . . . Repair Stations . | . . . . . . Recycling Units . | . . . . . . Scanalyzers . | . . . . . . Garrison Access . | . . . . . . Data Cores Recovered . | . . . . . . Used . | . . . . . . Hacking Detections 4 | . 1 3 . . . Full Trace Events . | . . . . . . Feedback Events . | . . . . . . Feedback Blocked . | . . . . . . Robot Schematics Acquired 4 | . . . . 4 . Robots Built . | . . . . . . Authchips . | . . . . . . Time . | . . . . . . Total Robot Build Rating . | . . . . . . Part Schematics Acquired 15 | . . . . 15 . Parts Built . | . . . . . . Authchips . | . . . . . . Time . | . . . . . . Total Part Build Rating . | . . . . . . Parts Repaired . | . . . . . . Time . | . . . . . . Parts Recycled . | . . . . . . Recycled Matter . | . . . . . . Retrieved Matter . | . . . . . . Retrieved Components . | . . . . . . Parts Scanalyzed . | . . . . . . Part Schematics Acquired . | . . . . . . Parts Damaged . | . . . . . . Bothacking | -11 -10 -9 -9 -7 -6 ------------ Run | Yrd Mat Mat Min Zio Pro Used RIF Installer . | . . . . . . Robots Hacked . | . . . . . . Non-combat . | . . . . . . Combat . | . . . . . . Robot Hacks Applied . | . . . . . . Relay Couplers Released . | . . . . . . Fabnet Peak Effective % . | . . . . . . Robots Rewired . | . . . . . . Allies Hacked . | . . . . . . Hacks Repelled . | . . . . . . Allies | -11 -10 -9 -9 -7 -6 -------- Run | Yrd Mat Mat Min Zio Pro Total Allies . | . . . . . . Largest Group . | . . . . . . Highest-Rated Group . | . . . . . . Highest-Rated Ally . | . . . . . . Total Orders . | . . . . . . Ally Attacks . | . . . . . . Total Damage . | . . . . . . Kills . | . . . . . . Allies Corrupted . | . . . . . . Allies Melted . | . . . . . . Intel | -11 -10 -9 -9 -7 -6 ------- Run | Yrd Mat Mat Min Zio Pro Robot Analysis Total . | . . . . . . Derelict Logs Recovered 1 | . . . . 1 . Drone Launches . | . . . . . . Drone Recoveries . | . . . . . . Exploration | -11 -10 -9 -9 -7 -6 ------------- Run | Yrd Mat Mat Min Zio Pro Turns Passed 4925 | 114 171 755 32 3738 115 Spaces Moved 1964 | 75 124 334 39 1359 33 Core 1411 | 14 . . 5 1359 33 Treads . | . . . . . . Legs 106 | 61 45 . . . . Wheels 310 | . 46 264 . . . Hover 33 | . 33 . . . . Flight 104 | . . 70 34 . . Fastest Speed 40 | 50 56 40 40 200 50 Average Speed 218 | 106 98 87 53 270 303 Slowest Speed 700 | 120 180 365 200 700 350 Overloaded Moves . | . . . . . . Propulsion Burnouts . | . . . . . . Robots Hopped 2 | . . . 2 . . Cave-ins Triggered . | . . . . . . Exploration Rate (%) 24 | 5 20 17 14 85 4 Regions Visited 5 Branch Regions 3 Pre-discovered Areas 3 | . . . . 3 . Known Exits Taken 2 | . . 1 1 . . Unknown Exits Taken 3 | 1 1 . . 1 . Scrap Searched 1 | . . . . 1 . Spaces Dug . | . . . . . . Terrain Destroyed 2 | . . 2 . . . Melee . | . . . . . . Projectile . | . . . . . . AOE 2 | . . 2 . . . Terrain Rammed . | . . . . . . Walls Destroyed . | . . . . . . Machines Disabled . | . . . . . . Actions | -11 -10 -9 -9 -7 -6 --------- Run | Yrd Mat Mat Min Zio Pro Total 2525 | 94 151 772 45 1422 41 Wait 446 | . 3 399 5 35 4 Move 1955 | 74 123 333 34 1358 33 Hop 2 | . . . 2 . . Pick Up 23 | 6 3 7 . 7 . Fast Attach 12 | 4 3 3 . 2 . Attach 14 | 3 1 4 . 6 . Detach 4 | . . 2 . 2 . Swap 8 | 1 2 4 . 1 . Drop 21 | . 5 7 . 9 . Fire 32 | 6 11 13 2 . . Melee 6 | . . . . 2 4 Ram 2 | . . . 2 . . Kick . | . . . . . . Crush . | . . . . . . Escape Stasis . | . . . . . . Rewire . | . . . . . . Trap . | . . . . . . Miscellaneous . | . . . . . . Route ------- -11/Scrapyard -10/Materials -9/Materials -9/Mines -7/Zion -6/Proximity Caves History --------- Turn | Location | Event 4 | -11/Scrapyard | Discovered new exit (range 14) 115 | -11/Scrapyard | Entered Materials 241 | -10/Materials | Discovered new exit (range 5) 286 | -10/Materials | Entered another Materials area 286 | -9/Materials | Evolved 2 slots: Utility x2 533 | -9/Materials | Build established: Mutant 1012 | -9/Materials | Discovered new exit (range 15) 1040 | -9/Materials | Identified exit to Mines 1041 | -9/Materials | Entered Mines 1042 | -9/Mines | Assembled infested the area 1047 | -9/Mines | Assisted by a Guerilla fighting off Assembled 1058 | -9/Mines | A Derelict revealed a hidden shortcut to a safe place 1071 | -9/Mines | Identified exit to Zion 1072 | -9/Mines | System corruption reached 10% 1073 | -9/Mines | Entered Zion 1103 | -7/Zion | Lost 5 parts (2n3u) 1152 | -7/Zion | System corruption cleaned by Quarantine Array 1333 | -7/Zion | Learned location of Quarantine (-2) 1821 | -7/Zion | Given A8's code to call for help 2146 | -7/Zion | Learned location of Data Miner (-6) 2226 | -7/Zion | Received a visual enhancement algorithm 2349 | -7/Zion | Found Prototype Device 2351 | -7/Zion | Identified Bomb Factory No. 2 2748 | -7/Zion | Found CR-A16's Pointy Stick 3537 | -7/Zion | Found Prototype Device 3537 | -7/Zion | Identified Mobile Refinery Mk. CCLXVII 4276 | -7/Zion | Discovered new exit (range 11) 4461 | -7/Zion | Build established: Infiltrator-Mutant 4811 | -7/Zion | Entered Proximity Caves 4894 | -6/Proximity Caves | Attracted the attention of an 0b10 checkpoint 4912 | -6/Proximity Caves | Core integrity fell below 50% 4919 | -6/Proximity Caves | Core integrity fell below 20% 4926 | -6/Proximity Caves | Destroyed by Y-54 Guardian with Gatling Laser Last Messages --------------- particular mysterious benefactor was withdrawn at the same time... This is all too confusing for me. I think I'll just go back to sorting scrap. 83-AWF(z) fiddles with the Twisted Machinery. EXIT=FOUND U7-387(z): I'm pretty sure the "cloak generators" don't actually do anything. They're just here to make us feel better. LOCATION=UNKNOWN GOAL=ESCAPE Y-54 Guardian: "INTERCEPTING UNREGISTERED DERELICT." Ion Engine destroyed. Seismic Detector destroyed. Transmission Jammer destroyed. Imp. Terrain Scanner destroyed. Mak. ECM Suite destroyed. Critical hit (Destroy). CR-A16's Pointy Stick destroyed. Map ----- +----------------------------------------------------+ | ?????????????????????????????????????????????????? | | ?????????????????????????????????????????????????? | | ?????????????????????????????????????????????????? | | ?????????????????????????????????????????????????? | | ?????????????????????????????????????????????????? | | ?????????????????????????????????????????????????? | | ?????????????????????????????????????????????????? | | ????????????????????????? ?????????????????????? | | ????????????????????????? ?????????????????????? | | ????????????????????????? ??? ?????????????????? | | ???????????????????#????? ????????????????????? | | ????????????????????????? ????????????????????? | | ????????????????????????? ????????????????????? | | ???????????????????#?????? ????????????????????? | | ?????????????????????????? #????????????????????? | | ?????????????????????? ??? #????????????????????? | | ??????????????????????? ? ##?#?????#???????????? | | ?????????????????????????? ###?????????????????? | | ?????????????????????? #?? ##????????????????? | | ???????????#?? ??? ???????# #???????? ???????? | | ??????????????? ? ? ?????# ##???????????????? | | ?????????????????????????##Y #### ???????? | | ??????????#??????????????# ?????? | | ???????????????????#?#???# ??????? | | ??????????#?????#????#####s ### ??????? | | ?????????????########## @s####?? ???????? | | ??????????#??## ##???#???## ???????? | | ?????????????# ##?????#????#?##????????? | | ??????#??????# ###### #?#?????????????????????? | | ?????????????# #????# #???????????????????????? | | ?????????#???# #?#??# #???#???????????????????? | | ?????????????# ###### #????#?????#????????????? | | ???????????#?## ##???#??????????????????? | | ??????#???????## #?#?????????????????????? | | ???????????????###########????????#??????????????? | | ???????????????????#?????????????????????????????? | | ????????????#??????????????#?????????????????????? | | ?????#?????????????#?????????????????????????????? | | ????????????#????????????????????????????????????? | | ?????????????????????????#???????????????????????? | | ????????????????????????#???#????????????????????? | | ????????????????????????#?#??????????????????????? | | ??????#??????????????????????????????????????????? | | ????????????#????????????????????????????????????? | | ????????????#????????????????????????????????????? | | ?????????????????????????????????????????????????? | | ?????????????????????????????????????????????????? | | ???????????????????#?????????????????????????????? | | ?????????????????????????????????????????????????? | | ?????????????????????????????????????????????????? | +----------------------------------------------------+ Best States ------------- Heat Dissipation 28 Energy Generation 10 Energy Capacity 250 Matter Stores 300 Matter Capacity 300 Sight Range 16 Terrain Scan Range 16 Terrain Scan Density 10 Jamming Range 12 Additional Mass Support 9 Armor Coverage 300 Evasion (%) 62 Item Schematics ----------------- Mapping Drone Bay | -7/Zion | Archive Imp. Deuterium Engine | -7/Zion | Archive Enh. Optical Array | -7/Zion | Archive Mak. Flight Unit | -7/Zion | Archive Imp. Hacking Suite | -7/Zion | Archive Imp. EM Pulse Cannon | -7/Zion | Archive Hpw. Shock Rifle | -7/Zion | Archive Mak. Light Armor Plating | -7/Zion | Archive Adv. Signal Interpreter | -7/Zion | Archive Dynamic Insulation System | -7/Zion | Archive Mass Driver | -7/Zion | Archive Mak. Leg | -7/Zion | Archive Tactical Coordination Suite | -7/Zion | Archive Lgt. Angular Momentum Engine | -7/Zion | Archive Component Analysis Suite | -7/Zion | Archive Robot Schematics ------------------ T-07 Excavator | -7/Zion | Archive L-41 Fighter | -7/Zion | Archive A-02 Transporter | -7/Zion | Archive G-73 Enforcer | -7/Zion | Archive Fabricated ------------ Nothing Alien Tech Used ----------------- None Achievements -------------- Robot Respite Challenges ------------ None Game ------ Seed TripodSuperchargedCarapace Manual? 0 Play Time 00:43:20 Cumulative 6.7 hours Start 2024.04.10 @ 23:20:29 End 2024.04.11 @ 00:03:59 Sessions 1 Manual Loads 0 Difficulty Rogue Special Mode None Game No. 8 Rogue 8 Adventurer 0 Explorer 0 Win Type - Total 0 Types 0/0/0/0/0/0/0/0/0 Lore% 4 Gallery% 12 Achievement% 12 Wizard Run 0 Options --------- Layout 1 ASCII 0 Keyboard 0 Movement Arrows Keybinds 0 Fullscreen 1 Font 24/Smallcaps Map View 50x35 Zoom Use 0% Tactical HUD 0 Map Filters NONE Filters NONE Steam 1 RUN: 3edbe5fc-6cd5-4ba5-a988-2171b23c5b3f